bitfinex/quotes_ETHUSD_20240716
["timestamp","ask_amount","ask_price","bid_price","bid_amount"]
[1721156196976,2.88144,3470.5,3469.3,2.8824]
[1721156196977,2.88193,3469.9,3469.3,2.8824]
[1721156198126,2.88192,3470.0,3469.3,2.8824]
[1721156200012,2.88193,3469.9,3469.3,2.8824]
[1721156200193,2.88193,3469.9,3469.1,5.33854]
[1721156200384,2.88193,3469.9,3469.2,2.8825]
[1721156201412,2.88182,3470.1,3469.3,2.88237]
[1721156201709,2.88184,3470.0,3469.3,2.88237]
[1721156205298,2.88184,3470.0,3469.4,2.88232]
[1721156209160,2.88181,3470.1,3469.2,2.88244]
[1721156209441,2.88193,3469.9,3469.3,2.88241]
[1721156209652,2.88181,3470.1,3469.3,2.88241]
[1721156210226,2.88181,3470.1,3469.4,2.88234]
[1721156210761,2.88184,3470.0,3469.4,2.88234]
[1721156212323,2.88184,3470.0,3469.2,6.6691888]
[1721156212665,2.88194,3469.9,3469.2,6.6691988]
[1721156212829,2.88194,3469.9,3469.2,3.7867488]
[1721156213027,2.88194,3469.9,3469.3,2.88241]
[1721156213355,2.88194,3469.9,3469.3,3.79492588]
[1721156213730,2.88186,3470.0,3469.4,2.88233]
[1721156216017,2.88193,3469.9,3469.4,2.88233]
[1721156216285,2.88193,3469.9,3469.3,0.91251588]
[1721156216451,2.88193,3469.9,3469.3,3.79492588]
[1721156217652,2.88193,3469.9,3469.3,0.91251588]
[1721156217973,2.88211,3469.7,3469.1,2.456]
[1721156218274,2.88226,3469.5,3468.9,2.88269]
[1721156218944,2.88234,3469.4,3468.7,2.353]
[1721156219234,2.88234,3469.4,3468.7,5.23591]
[1721156219557,2.88242,3469.3,3468.7,3.2474517]
[1721156221460,2.4474,3469.6,3468.2,5.325]
[1721156221632,5.76549,3469.0,3468.3,2.8832]
[1721156221831,2.88276,3468.9,3468.2,8.20824]
[1721156222150,2.88276,3468.9,3468.3,2.88323]
[1721156222359,2.88276,3468.9,3468.4,0.82082]
[1721156222565,2.88276,3468.9,3468.3,2.88325]
[1721156223372,2.88254,3469.2,3468.3,2.88325]
[1721156223624,5.76512,3469.2,3468.4,2.88315]
[1721156223908,2.88261,3469.1,3468.4,2.88315]
[1721156224363,2.88229,3469.5,3468.2,5.4837]
[1721156224546,2.8824,3469.4,3468.7,2.88291]
[1721156224750,2.88244,3469.3,3468.4,2.88313]
[1721156224961,2.88244,3469.3,3468.5,0.55]
[1721156225336,2.4474,3469.6,3467.7,0.30139383]
[1721156225337,2.88367,3467.8,3467.7,0.30139383]
[1721156225455,2.88367,3467.8,3466.4,5.32796]
[1721156225456,1.50905332,3468.3,3466.9,2.88438]
[1721156225751,1.7,3468.8,3467.6,2.4958]
[1721156225752,2.88299,3468.7,3467.6,2.4958]
[1721156225976,2.88307,3468.6,3467.6,2.4958]
[1721156226273,2.3317,3468.5,3467.3,2.88408]
[1721156226462,2.88336,3468.2,3467.4,1.130611]
[1721156226836,2.88336,3468.2,3467.2,2.88416]
[1721156227383,2.88334,3468.2,3467.2,2.88416]
[1721156227875,2.88357,3468.0,3467.3,0.55]
[1721156228039,2.88359,3467.9,3467.3,0.55]
[1721156228437,2.88345,3468.1,3467.3,0.55]
[1721156228655,3.84122916,3468.5,3467.4,0.592996]
[1721156228656,2.88351,3468.0,3467.4,0.592996]
[1721156228858,2.88364,3467.9,3467.4,0.592996]
[1721156229659,2.3317,3468.5,3467.1,2.4958]
[1721156229881,2.88388,3467.6,3467.1,2.4958]
[1721156230177,2.88392,3467.5,3467.1,2.4958]
[1721156231370,2.88401,3467.4,3466.7,2.88454]
[1721156231590,2.88401,3467.4,3465.8,1.50545795]
[1721156231591,2.88409,3467.3,3466.3,2.88489]
[1721156231759,2.4724,3467.7,3466.2,2.88499]
[1721156231760,2.8844,3467.0,3466.2,2.88499]
[1721156232208,2.88424,3467.2,3466.0,8.3321]
[1721156232209,2.88442,3466.9,3466.0,8.3321]
[1721156232419,2.8845,3466.8,3466.0,2.405]
[1721156232723,2.8845,3466.8,3466.1,0.529023]
[1721156232941,2.88442,3466.9,3466.1,3.414103]
[1721156233656,2.88442,3466.9,3466.2,0.55]
[1721156233857,2.88417,3467.2,3466.2,0.55]
[1721156234091,2.88417,3467.2,3466.4,2.88483]
[1721156234296,2.88417,3467.2,3466.5,4.37093]
[1721156234473,2.456,3467.8,3466.6,2.88466]
[1721156234664,2.884,3467.4,3466.7,3.43458]
[1721156234898,2.88389,3467.6,3466.7,2.88458]
[1721156235257,2.88382,3467.7,3466.8,2.3476]
[1721156235476,2.88382,3467.7,3466.9,3.407628]
[1721156236470,2.8836,3467.9,3466.9,3.407628]
[1721156236667,2.88359,3467.9,3467.1,2.88425]
[1721156236874,2.88342,3468.1,3467.2,0.55]
[1721156237287,2.88342,3468.1,3467.3,2.88406]
[1721156237486,2.8835,3468.0,3467.3,3.515891]
[1721156237666,4.7506,3468.6,3467.3,3.515891]
[1721156237667,2.88342,3468.1,3467.4,2.884]
[1721156237865,2.88339,3468.2,3467.4,2.884]
[1721156238067,7.63363,3468.6,3467.5,2.8839]
[1721156238319,4.38748872,3468.9,3467.7,2.88368]
[1721156238320,2.88315,3468.5,3467.7,2.88368]
[1721156238616,2.88319,3468.4,3467.8,0.826429]
[1721156238765,2.88319,3468.4,3467.7,2.88368]
[1721156239304,2.88319,3468.4,3467.6,5.38061]
[1721156239478,2.88319,3468.4,3467.7,0.55]
[1721156239975,2.88319,3468.4,3467.7,3.43375]
[1721156240414,2.88319,3468.4,3467.7,0.55]
[1721156240774,2.88319,3468.4,3467.7,3.43374]
[1721156241617,2.88319,3468.4,3467.7,4.369711]
[1721156241914,2.88319,3468.4,3467.7,1.485971]
[1721156242119,3.0,3468.8,3467.3,0.631831]
[1721156242329,5.33871,3469.0,3467.3,2.88408]
[1721156242330,2.88351,3468.0,3467.3,2.88408]
[1721156244992,2.88343,3468.1,3467.4,2.884]
[1721156245196,2.88319,3468.4,3467.6,2.88377]
[1721156245396,2.88325,3468.3,3467.6,2.88377]
[1721156245787,2.88325,3468.3,3467.3,2.88405]
[1721156245788,2.88335,3468.2,3467.3,2.88408]
[1721156245987,2.88335,3468.2,3467.2,2.2505]
[1721156245988,2.88356,3468.0,3467.2,2.2505]
[1721156246192,2.88359,3467.9,3467.2,2.88416]
[1721156246399,2.88359,3467.9,3467.3,2.88408]
[1721156246698,2.88369,3467.8,3467.1,2.88423]
[1721156247399,2.88359,3467.9,3467.1,3.7409958]
[1721156247601,2.88347,3468.1,3467.4,2.88399]
[1721156248724,2.88337,3468.2,3467.4,2.88399]
[1721156248725,2.8835,3468.0,3467.4,2.88399]
[1721156249205,2.8835,3468.0,3467.2,2.8841]
[1721156249405,2.8837,3467.8,3467.1,3.7410158]
[1721156251285,2.8837,3467.8,3467.2,0.71486438]
[1721156251686,2.8835,3468.0,3467.2,0.71486438]
[1721156252605,2.8835,3468.0,3467.3,2.88402]
[1721156252812,2.88336,3468.2,3467.3,5.76802]
[1721156253012,2.88348,3468.1,3467.3,5.76802]
[1721156253210,2.88348,3468.1,3467.3,6.50198502]
[1721156253412,2.88348,3468.1,3467.4,2.88399]
[1721156253624,2.88331,3468.3,3467.5,2.88388]
[1721156253988,2.88331,3468.3,3467.5,2.88387]
[1721156254400,2.88331,3468.3,3467.6,2.88377]
[1721156255331,5.76664,3468.3,3467.6,2.88377]
[1721156255630,2.88331,3468.3,3467.6,2.88377]
[1721156255927,2.88331,3468.3,3467.7,2.88374]
[1721156257425,2.88331,3468.3,3467.6,2.88381]
[1721156257426,2.88334,3468.2,3467.6,2.88381]
[1721156258224,2.88334,3468.2,3467.6,5.76758]
[1721156258731,2.88334,3468.2,3467.6,2.88377]
[1721156259293,2.88334,3468.2,3467.4,5.36166]
[1721156259523,2.88334,3468.2,3467.6,2.88377]
[1721156261327,2.88334,3468.2,3467.6,5.76756]
[1721156261508,2.88334,3468.2,3467.6,6.7204825]
[1721156262002,2.88334,3468.2,3467.6,3.8366925]
[1721156262816,2.88334,3468.2,3467.7,2.88375]
[1721156265715,4.39259622,3468.2,3467.7,2.88375]
[1721156266243,2.11295871,3468.8,3467.5,0.55]
[1721156266244,1.50925622,3468.4,3468.0,2.88344]
[1721156266731,1.50925622,3468.4,3467.9,2.88357]
[1721156267237,1.50925622,3468.1,3467.5,0.55]
[1721156267436,1.50925622,3468.1,3467.7,2.88375]
[1721156267605,1.50925622,3468.0,3467.7,2.88375]
[1721156267803,1.50925622,3468.1,3467.7,2.88375]
[1721156268012,2.8833,3468.3,3467.7,2.88375]
[1721156268223,2.8833,3468.3,3467.5,3.43384]
[1721156268224,1.51056635,3468.0,3467.5,3.43384]
[1721156268845,1.51056635,3468.0,3467.5,6.31769]
[1721156269447,1.51056635,3468.0,3467.5,3.43384]
[1721156270149,1.51056635,3467.9,3467.5,2.88384]
[1721156271223,1.51056635,3467.8,3467.5,2.88384]
[1721156271424,1.81267962,3468.1,3467.5,2.88384]
[1721156271425,2.88343,3468.1,3467.5,2.88384]
[1721156271625,1.51267217,3467.8,3467.5,2.88384]
[1721156271938,1.51267217,3467.8,3467.5,5.76768]
[1721156272137,1.51267217,3467.8,3467.6,2.88382]
[1721156272868,1.51267217,3467.9,3467.6,2.88382]
[1721156274134,1.51267217,3467.8,3467.6,2.88382]
[1721156274524,1.51273539,3467.8,3467.6,2.88382]
[1721156275016,1.51273539,3467.9,3467.6,2.88382]
[1721156276146,1.51273539,3467.9,3467.4,2.88392]
[1721156276354,1.51273539,3467.9,3467.5,2.88387]
[1721156277261,1.51273539,3467.8,3467.5,2.88387]
[1721156277833,1.51248885,3467.8,3467.5,2.88387]
[1721156278044,1.51248885,3467.8,3467.4,2.88392]
[1721156278655,1.51248885,3467.8,3467.2,2.88414]
[1721156278819,1.51248885,3467.8,3467.1,2.88424]
[1721156278820,1.51248885,3467.7,3467.1,2.88424]
[1721156279025,1.51248885,3467.4,3467.1,2.88424]
[1721156279336,4.34331988,3467.8,3467.1,2.88424]
[1721156279337,1.51336936,3467.2,3467.1,2.88424]
[1721156279950,6.46203699,3467.8,3467.1,2.88424]
[1721156279951,1.51336936,3467.3,3467.1,2.88424]
[1721156280168,1.51336936,3467.2,3467.1,2.88424]
[1721156280752,1.51336936,3467.3,3467.1,2.88424]
[1721156281197,1.51377459,3467.3,3467.1,2.88424]
[1721156281369,1.45959988,3467.8,3466.6,2.2535]
[1721156281370,1.51399281,3467.2,3466.6,2.2535]
[1721156281579,1.51399281,3467.0,3466.7,2.88451]
[1721156281870,1.51399281,3467.0,3466.8,2.88448]
[1721156282023,6.02348994,3467.6,3466.8,2.88448]
[1721156282024,1.51399281,3466.9,3466.8,2.88448]
[1721156282522,1.81679138,3467.3,3466.8,2.88448]
[1721156282523,1.51399281,3467.0,3466.8,2.88448]
[1721156283275,1.51399281,3467.1,3466.9,2.88442]
[1721156283448,1.02,3467.8,3467.1,2.88425]
[1721156283449,1.51399281,3467.2,3467.1,2.88425]
[1721156283653,1.51399281,3467.3,3467.2,2.88417]
[1721156284234,2.88372,3467.8,3467.2,2.88417]
[1721156284433,1.51365437,3467.4,3467.2,2.88417]
[1721156286127,1.51365437,3467.3,3467.2,5.76829]
[1721156286358,1.51365437,3467.3,3467.2,2.88412]
[1721156286538,1.51365437,3467.4,3467.2,2.88409]
[1721156286865,2.88359,3467.9,3467.2,2.88409]
[1721156286866,1.51365437,3467.3,3467.2,2.88409]
[1721156287031,1.81638524,3467.6,3467.2,2.88409]
[1721156287232,1.51371178,3467.3,3467.2,2.88409]
[1721156287455,2.88367,3467.8,3467.2,2.88409]
[1721156287802,1.51364813,3467.3,3467.2,2.88409]
[1721156290976,1.51336944,3467.3,3467.2,2.88409]
[1721156291588,1.51336944,3467.3,3466.9,0.55]
[1721156291793,1.51336944,3467.2,3467.0,2.88432]
[1721156291944,1.51336944,3467.2,3466.8,2.88443]
[1721156292151,1.51336944,3467.1,3466.9,2.88439]
[1721156294007,2.3587,3467.4,3466.9,2.88439]
[1721156294151,1.51295578,3467.0,3466.9,2.88439]
[1721156294551,2.3587,3467.4,3466.9,2.88439]
[1721156294552,1.51295578,3467.1,3466.9,2.88439]
[1721156294785,1.51295578,3467.0,3466.9,2.88439]
[1721156295670,1.51295578,3467.0,3466.7,2.88454]
[1721156296008,1.51295578,3467.0,3466.8,2.88446]
[1721156296153,1.51295578,3467.0,3466.9,2.88442]
[1721156296805,1.51295578,3467.1,3466.9,2.88442]
[1721156297354,5.24271,3467.4,3466.9,2.88442]
[1721156297689,1.5122927,3467.0,3466.9,2.88442]
[1721156297989,1.5122927,3467.1,3466.9,2.88442]
[1721156298288,1.5122927,3467.2,3466.9,2.88442]
[1721156298670,1.5122927,3467.2,3467.0,2.88432]
[1721156299632,1.5122927,3467.3,3467.0,2.88432]
[1721156299767,1.5122927,3467.2,3467.0,2.88432]
[1721156299972,1.5122927,3467.2,3466.8,2.88443]
[1721156300494,3.90394,3467.5,3466.9,2.88441]
[1721156300808,1.51199249,3467.1,3466.9,2.88441]
[1721156302512,1.51199249,3467.1,3466.7,5.76905]
[1721156302704,1.51199249,3467.1,3466.5,2.88471]
[1721156302919,1.51199249,3467.1,3466.7,2.88452]
[1721156303879,1.51227197,3467.1,3466.7,2.88452]
[1721156304312,1.51227197,3467.1,3466.8,2.88444]
[1721156305484,1.51227197,3467.2,3466.8,2.88444]
[1721156305709,1.51227197,3467.2,3466.9,2.8844]
[1721156306075,1.51227197,3467.2,3467.1,2.88425]
[1721156306297,1.51227197,3467.2,3467.0,5.22163]
[1721156306298,1.51227197,3467.4,3467.2,2.88417]
[1721156307116,1.51278645,3467.4,3467.2,2.88417]
[1721156308338,3.13790103,3468.0,3467.0,2.88427]
[1721156308339,1.81534374,3467.5,3467.0,2.88427]
[1721156308608,1.51292781,3467.2,3467.1,2.88425]
[1721156310221,1.51308003,3467.2,3467.1,2.88425]
[1721156311412,1.5131873,3467.2,3467.1,2.88425]
[1721156312516,1.81569603,3467.5,3467.1,2.88425]
[1721156312715,1.51329771,3467.2,3467.1,2.88425]
[1721156312881,1.51329771,3467.3,3467.1,2.88425]
[1721156313283,1.02,3467.8,3467.4,11.694]
[1721156313284,1.51329771,3467.5,3467.4,11.694]
[1721156313482,9.8522561,3468.4,3467.4,11.694]
[1721156313483,1.81562606,3468.2,3467.8,2.88367]
[1721156313722,1.51299602,3468.0,3467.8,2.88367]
[1721156314005,1.81562606,3468.2,3467.9,2.88358]
[1721156314221,1.51279194,3468.0,3467.9,2.88358]
[1721156314643,1.81562606,3468.2,3467.9,2.88358]
[1721156315227,1.81562606,3468.2,3467.9,5.7671]
[1721156315807,1.51275768,3468.1,3467.9,5.7671]
[1721156316007,1.51275768,3468.0,3467.9,2.88352]
[1721156316502,2.2755,3468.5,3468.0,2.8835]
[1721156316749,1.51272715,3468.1,3468.0,2.8835]
[1721156318936,1.81527258,3468.4,3468.0,2.8835]
[1721156319146,1.51241266,3468.1,3468.0,2.8835]
[1721156319327,1.51241266,3468.2,3468.1,2.88342]
[1721156319720,1.81468543,3468.6,3468.2,2.88325]
[1721156319937,1.51221555,3468.3,3468.2,2.88325]
[1721156320606,1.51221555,3468.6,3468.3,2.88324]
[1721156320816,1.51221555,3468.6,3468.5,2.88309]
[1721156321117,1.81468543,3468.9,3468.5,2.88309]
[1721156321118,1.51221555,3468.9,3468.5,2.88309]
[1721156321322,4.29428543,3469.2,3468.5,2.88309]
[1721156321323,1.51221555,3468.8,3468.6,2.883]
[1721156322857,2.4796,3469.2,3468.6,2.883]
[1721156323090,1.51094112,3468.9,3468.6,2.883]
[1721156323225,1.51094112,3468.8,3468.6,2.883]
[1721156323614,1.51094112,3468.9,3468.6,2.883]
[1721156324160,7.99758756,3469.5,3468.8,3.90284]
[1721156324161,1.51094112,3469.0,3468.8,3.90284]
[1721156324311,1.51094112,3469.1,3468.8,2.88284]
[1721156324539,1.51094112,3469.1,3468.7,2.88292]
[1721156324540,1.51094112,3469.1,3468.9,2.88275]
[1721156326022,3.0,3469.3,3468.9,2.88275]
[1721156326249,1.50954559,3469.1,3468.9,2.88275]
[1721156326551,1.50954559,3469.1,3468.8,2.88283]
[1721156327414,1.50954559,3469.2,3468.8,2.88283]
[1721156329379,3.0,3469.4,3468.8,2.88283]
[1721156329654,1.50856517,3469.2,3468.8,2.88283]
[1721156330041,1.50856517,3469.3,3468.8,2.88283]
[1721156330365,1.50856517,3469.2,3468.8,2.88283]
[1721156330525,1.50856517,3469.3,3468.8,2.88283]
[1721156331063,1.50856517,3469.2,3468.8,2.88283]
[1721156332655,3.0,3469.4,3468.8,2.88283]
[1721156332656,1.50766246,3469.3,3468.8,2.88283]
[1721156334364,1.50747814,3469.3,3468.8,2.88283]
[1721156335874,1.50720677,3469.3,3468.8,2.88283]
[1721156336367,1.50719482,3469.3,3468.6,2.88299]
[1721156336520,1.50719482,3469.3,3468.6,2.88293]
[1721156336521,2.38586703,3469.3,3468.6,2.88293]
[1721156336734,2.38586703,3469.3,3468.3,1.02]
[1721156336735,3.76110221,3469.3,3468.3,1.02]
[1721156336989,4.5071609,3469.2,3468.3,1.02]
[1721156337145,4.5071609,3469.2,3468.2,7.37]
[1721156337146,2.88285,3468.8,3468.2,7.37]
[1721156337338,1.02,3468.9,3468.2,2.88329]
[1721156337339,1.50728521,3468.9,3468.2,2.88329]
[1721156337539,2.88281,3468.9,3468.2,2.88329]
[1721156338470,3.93538521,3469.0,3468.3,2.88325]
[1721156339244,5.31078,3469.0,3468.3,2.88325]
[1721156339881,2.88268,3469.0,3468.3,2.88325]
[1721156340178,5.76543,3469.0,3468.3,2.88325]
[1721156340403,2.88268,3469.0,3468.3,2.88325]
[1721156341353,2.43362321,3469.1,3468.4,2.88311]
[1721156341586,1.50726621,3469.0,3468.5,2.88308]
[1721156341895,2.8826,3469.1,3468.5,2.88308]
[1721156342076,5.41710383,3469.1,3468.5,2.88308]
[1721156342458,3.90983762,3469.1,3468.5,2.88308]
[1721156342669,5.41740735,3469.1,3468.5,2.88308]
[1721156343190,5.41739735,3469.1,3468.5,2.88308]
[1721156343978,2.53480735,3469.1,3468.5,2.88308]
[1721156344194,4.50756973,3469.2,3468.5,2.88308]
[1721156344492,7.39008973,3469.2,3468.5,2.88308]
[1721156344693,1.50756973,3469.1,3468.5,2.88308]
[1721156345800,8.76511,3469.2,3468.5,2.88308]
[1721156346001,1.50797225,3469.1,3468.5,2.88308]
[1721156346560,1.50797225,3469.0,3468.5,2.88308]
[1721156347110,1.50797225,3469.1,3468.5,2.88308]
[1721156348597,1.50797225,3469.0,3468.6,2.2928]
[1721156349158,2.88261,3469.1,3468.6,2.2928]
[1721156349358,1.50873416,3468.9,3468.6,2.2928]
[1721156349976,1.50873416,3469.0,3468.6,5.1758]
[1721156350177,1.50873416,3469.1,3468.8,2.88284]
[1721156350382,3.0,3469.2,3468.9,1.02]
[1721156350383,1.50873416,3469.2,3468.9,1.02]
[1721156350602,1.50873416,3469.3,3469.0,2.88261]
[1721156350762,1.50873416,3469.4,3469.2,2.3709]
[1721156350962,3.0,3469.6,3469.2,2.3709]
[1721156350963,1.50873416,3469.6,3469.2,2.3709]
[1721156351164,1.50873416,3469.7,3469.2,2.3709]
[1721156351580,1.50873416,3469.6,3469.2,2.3709]
[1721156352187,2.88205,3469.8,3469.2,2.3709]
[1721156352388,1.50916899,3469.5,3469.2,2.3709]
[1721156352615,1.50916899,3469.5,3469.1,2.88258]
[1721156352936,1.50916899,3469.5,3468.9,6.27359]
[1721156353112,1.50916899,3469.4,3469.0,2.88263]
[1721156353781,1.50916899,3469.3,3469.0,2.88263]
[1721156353980,1.50916899,3469.3,3468.6,2.3709]
[1721156354288,1.50916899,3469.1,3468.6,5.25389]
[1721156354600,1.50916899,3469.0,3468.6,2.88299]
[1721156354800,2.88251,3469.2,3468.6,2.88299]
[1721156354801,1.50916899,3469.1,3468.6,2.88299]
[1721156355517,1.51006021,3469.0,3468.6,2.88299]
[1721156355875,1.51006021,3469.1,3468.7,3.5184]
[1721156356080,1.51006021,3469.1,3468.7,3.426854]
[1721156356610,1.51006021,3469.0,3468.7,3.426854]
[1721156356805,1.51006021,3469.1,3468.7,3.426854]
[1721156357005,1.51006021,3469.0,3468.7,3.426854]
[1721156357310,2.88248,3469.3,3468.7,3.426854]
[1721156357311,1.51006021,3469.1,3468.7,3.426854]
[1721156357521,1.51006021,3469.0,3468.7,3.426854]
[1721156358283,1.51006021,3469.0,3468.7,2.4984]
[1721156358592,1.51248085,3468.9,3468.7,5.3813]
[1721156360091,1.51248085,3469.0,3468.7,5.3813]
[1721156360803,1.51248085,3469.0,3468.9,2.88275]
[1721156361303,1.51248085,3469.1,3468.9,2.88275]
[1721156361632,1.51248085,3469.1,3468.8,2.88284]
[1721156361928,1.51291392,3469.0,3468.9,2.88269]
[1721156362220,2.88228,3469.5,3468.9,2.88269]
[1721156362221,1.81555859,3469.2,3468.9,2.88269]
[1721156362519,2.88228,3469.5,3468.9,2.88269]
[1721156362520,1.51291875,3469.0,3468.9,2.88269]
[1721156362727,1.5130693,3469.0,3468.9,2.88269]
[1721156363026,1.81555859,3469.2,3468.9,2.88269]
[1721156363457,1.81555859,3469.2,3468.9,0.928386]
[1721156363738,1.81555859,3469.4,3469.1,1.02]
[1721156364091,1.81555859,3469.4,3469.0,2.88262]
[1721156364293,5.88211,3469.7,3469.1,2.88259]
[1721156364294,1.51313585,3469.2,3469.1,2.88259]
[1721156365033,1.81588259,3469.4,3469.1,2.88259]
[1721156365390,1.81588259,3469.5,3469.1,2.88259]
[1721156366001,1.81588259,3469.3,3469.1,2.88259]
[1721156368547,1.81612955,3469.3,3469.1,2.88259]
[1721156370653,1.81612955,3469.4,3469.1,2.88259]
[1721156370858,1.81612955,3469.3,3469.1,2.88259]
[1721156371151,2.88218,3469.6,3469.1,2.88259]
[1721156371152,1.81612955,3469.4,3469.1,2.88259]
[1721156371660,1.81585254,3469.4,3469.1,2.88259]
[1721156372746,1.81585254,3469.4,3469.2,2.88248]
[1721156372962,1.81585254,3469.5,3469.2,2.88248]
[1721156374322,1.51293494,3469.3,3469.2,2.88248]
[1721156374545,1.81585254,3469.6,3469.2,2.88248]
[1721156374829,1.81544952,3469.5,3469.2,2.88248]
[1721156375249,1.81544952,3469.6,3469.2,2.88248]
[1721156375454,1.81544952,3469.5,3469.2,2.88248]
[1721156375664,1.81544952,3469.6,3469.2,2.88248]
[1721156376874,1.81544952,3469.5,3469.2,2.88248]
[1721156377232,1.81544952,3469.6,3469.0,2.88261]
[1721156377437,1.81544952,3469.4,3469.1,2.88257]
[1721156377747,1.81544952,3469.5,3469.1,5.76509]
[1721156377948,1.81527019,3469.4,3469.2,2.88249]
[1721156379491,1.81527019,3469.5,3469.2,3.56101]
[1721156379854,1.51265905,3469.3,3469.2,3.56101]
[1721156380188,1.51260389,3469.3,3469.2,3.56101]
[1721156381104,1.51251536,3469.3,3469.2,3.56101]
[1721156382357,1.51251536,3469.3,3469.2,2.88249]
[1721156382869,1.51251536,3469.3,3469.2,5.17449]
[1721156383417,1.81501844,3469.6,3469.3,2.88242]
[1721156383565,1.5123998,3469.5,3469.4,2.88234]
[1721156383770,2.88158,3470.4,3469.6,2.88217]
[1721156383771,1.5123998,3469.7,3469.6,2.88217]
[1721156384084,2.50132229,3470.7,3469.6,2.88217]
[1721156384085,1.5123998,3470.0,3469.9,2.88192]
[1721156384280,1.51222205,3470.1,3470.0,6.30099]
[1721156384572,1.51222205,3470.3,3470.2,2.88167]
[1721156384803,1.51222205,3470.4,3470.2,2.88167]
[1721156385400,1.51222205,3470.5,3470.2,2.88167]
[1721156385993,1.51222205,3470.5,3470.2,3.90167]
[1721156386515,1.51222205,3470.7,3470.4,2.88151]
[1721156386678,1.51222205,3470.6,3470.4,2.88151]
[1721156386885,1.81466646,3471.0,3470.4,2.88151]
[1721156386886,1.51222205,3470.7,3470.4,2.88151]
[1721156387401,1.5103147,3470.7,3470.4,2.88151]
[1721156387609,1.5103147,3470.7,3470.2,2.88166]
[1721156387901,1.5103147,3470.6,3470.3,2.88159]
[1721156390419,2.88101,3471.0,3470.3,2.88159]
[1721156390420,1.5103147,3470.7,3470.3,2.88159]
[1721156390629,1.50895565,3470.6,3470.3,2.88159]
[1721156391331,1.50895565,3470.6,3470.2,2.88167]
[1721156392516,1.50895565,3470.7,3470.2,2.88167]
[1721156393320,1.50895565,3470.7,3470.3,2.88159]
[1721156393628,2.88111,3470.9,3470.3,2.88159]
[1721156393803,1.50861438,3470.7,3470.3,2.88159]
[1721156395154,1.50861438,3470.8,3470.4,2.88147]
[1721156395444,1.50840164,3470.8,3470.4,2.88147]
[1721156395812,1.50840164,3470.9,3470.4,5.29367]
[1721156396137,1.50840164,3470.9,3470.5,2.88142]
[1721156396320,1.50840164,3471.0,3470.6,2.88133]
[1721156396518,5.3042,3471.4,3470.6,2.88133]
[1721156396519,1.50840164,3471.1,3470.6,2.88133]
[1721156396729,1.50840164,3471.2,3470.8,1.02]
[1721156396943,1.50840164,3471.2,3470.5,0.05762676]
[1721156396944,1.50840164,3471.5,3471.1,2.88088]
[1721156397207,3.0310947,3471.9,3471.2,2.88077]
[1721156397208,1.50840164,3471.6,3471.2,2.88077]
[1721156397404,1.50840164,3471.8,3471.3,2.88074]
[1721156397760,2.14335147,3471.8,3471.4,2.88065]
[1721156397919,1.65918634,3471.9,3471.4,3.90065]
[1721156398129,1.65918634,3471.9,3471.5,2.88059]
[1721156398314,0.1507847,3471.9,3471.5,2.88059]
[1721156401138,0.1507847,3471.9,3471.7,2.88038]
[1721156401334,0.1507847,3471.9,3471.5,2.88059]
[1721156401335,0.1507847,3471.9,3471.5,2.88053]
[1721156401537,0.1507847,3471.9,3471.3,5.20248]
[1721156401871,0.1507847,3471.9,3471.5,5.76107]
[1721156402017,0.1507847,3471.9,3471.6,2.8805]
[1721156403059,2.2733,3471.8,3470.9,2.88109]
[1721156403261,5.15369,3471.8,3470.9,2.88109]
[1721156403572,5.15369,3471.8,3471.1,2.88086]
[1721156404927,5.15369,3471.8,3471.0,2.88101]
[1721156405128,5.15369,3471.8,3471.1,2.88091]
[1721156405451,5.15369,3471.8,3471.1,3.55911]
[1721156405656,2.88039,3471.8,3471.1,5.93361]
[1721156406054,2.88039,3471.8,3471.1,5.25541]
[1721156406254,2.88039,3471.8,3471.1,2.88091]
[1721156407878,0.1507847,3471.9,3470.5,5.25308]
[1721156407879,2.88053,3471.6,3470.5,5.25308]
[1721156408043,2.88068,3471.4,3470.4,2.8815]
[1721156408290,2.4937,3471.7,3470.4,2.8815]
[1721156408291,2.88055,3471.6,3470.8,2.88117]
[1721156408493,5.88036,3471.8,3470.8,2.88117]
[1721156408691,5.88036,3471.8,3471.1,2.88091]
[1721156409021,5.88036,3471.8,3471.2,2.88082]
[1721156409778,3.0,3471.8,3471.2,2.88082]
[1721156410927,0.1507847,3471.9,3471.4,2.88061]
[1721156411888,0.1507847,3471.9,3471.5,2.88059]
[1721156412596,0.1507847,3471.9,3471.3,2.88069]
[1721156412986,2.3196,3471.8,3470.9,2.4213]
[1721156413193,2.3196,3471.8,3470.4,5.96832]
[1721156413194,3.41551847,3471.7,3470.8,2.88115]
[1721156413420,3.41551847,3471.7,3471.0,2.88096]
[1721156413586,2.88054,3471.6,3470.9,2.88106]
[1721156413786,2.88054,3471.6,3471.0,2.881]
[1721156414296,2.88054,3471.6,3471.0,2.88094]
[1721156414512,4.29076377,3471.8,3471.1,2.88092]
[1721156414843,0.1507847,3471.9,3471.0,2.88094]
[1721156415345,2.88045,3471.7,3471.0,2.88094]
[1721156415508,2.88045,3471.7,3471.0,2.88095]
[1721156415911,2.88045,3471.7,3470.6,2.482]
[1721156415912,2.88052,3471.6,3470.8,2.88111]
[1721156416743,2.88052,3471.6,3471.0,2.88096]
[1721156417362,2.88052,3471.6,3471.0,3.457167]
[1721156418223,2.88052,3471.6,3471.0,6.338127]
[1721156418454,2.4418,3471.7,3471.1,2.88091]
[1721156419376,0.1507847,3471.9,3471.4,2.88063]
[1721156419572,0.1507847,3471.9,3471.3,2.88074]
[1721156419738,0.1507847,3471.9,3471.1,2.3849]
[1721156419739,0.1507847,3471.9,3471.2,2.88077]
[1721156420066,0.1507847,3471.9,3471.6,2.8805]
[1721156420770,0.1507847,3471.9,3471.4,2.88061]
[1721156420960,0.1507847,3471.9,3471.5,2.88057]